Workbook

Sheet Innehåll
B2: Innehållsförteckning
B4: Anvisningar | C4: Anvisningar för att producera diagram till webben
B6: Vägledning | C6: Definitioner och förklaringar
B8: Data | C8: Tidsserier som ligger till grund för diagrammen samt originalserie
B10: Diagram 1 | C10: =Data!A5 -> Hushållens låneskulder i procent av justerad disponibel inkomst och av hushållens finansiella tillgångar

Sheet Contents
B2: Contents
B4: Guide | C4: Definitions & explanations
B6: Data | C6: …
B8: Graph 1 | C8: =Data!A1 -> Household loans as a percentage of gross/net disposable income plus pension rights, and as a percentage of household financial assets

Sheet Vägledning
B2: Vägledning
B4: Utskriftstips | C4: Utskriftsformatet i samtliga flikar med diagram är förinställt på att utskriften förstoras till 120% och innehållet centreras vertikalt och horisontellt.
C5: Om utskriften av diagrammen inte blir tillfredställande så ändra inställningarna under utskriftsformat till vad som passar just din skrivare.
B8: Definitioner & förklaringar
C10: Diagrammet visar hushållssektorns låneskulder i procent av disponibel inkomst brutto/netto plus pensionsrätter (B6G+D8.REC), samt i procent av hushållens finansiella tillgångar. Skillnad mellan brutto och netto disponibel inkomst är kapitalförslitningen. Det vill säga man drar av kapitalförslitningen från brutto disponibel inkomst, då får man netto disponibel inkomst. Om man vill jämföra olika länders disponibel inkomst är det lämpligt att använda brutto disponibel inkomst, eftersom olika länder kan skilja sig i beräkningen av kapitalförslitningen. T.ex. Eurostat redovisar brutto disponibel inkomst på sin hemsida. Däremot om man vill beskriva ett enskilt lands disponibel inkomst, då använder man oftast netto disponibel inkomst.

Sheet Guide
B2: Guide
B8: Definitions & explanations
C10: The diagram shows the borrowings of the household sector as a percentage of gross/net disposable income plus pension rights (B6G+D8.REC), and as a percentage of household financial assets. The difference between gross and net disposable income is the consumption of fixed capital. In other words, the consumption of fixed capital is subtracted from gross disposable income to obtain the net disposable income. In order to compare the disposable income of different countries, it is recommendable to use gross disposable income, since different countries can differ in the way they calculate consumption of fixed capital. E.g. Eurostat presents gross disposable income on its website. On the other hand, to describe the disposable income of a single country, it is recommendable to use net disposable income.

Sheet Data
A1: Household loans as a percentage of gross/net disposable income plus pension rights, and as a percentage of household financial assets
A3: Data up to and including 2023 | E3: S14, household
B4: As a procentage of gross disposable income plus pension rights | C4: As a procentage of net disposable income plus pension rights | D4: As a percentage of households' financial assets | E4: Households gross disposable income (B6g) + pension rights (D8. REC) | F4: Households net disposable income (B6n) + pension rights (D8. REC) | G4: Households gross disposable income (B6g) | H4: Households net disposable income (B6n) | I4: Pension rights | J4: Households' loans FL4000 | K4: Financial assets FA0100
A5: Hushållens låneskulder i procent av justerad disponibel inkomst och av hushållens finansiella tillgångar
A6: Data t.o.m 2023 | E6: S14, hushåll
B8: Andel av disponibel inkomst brutto | C8: Andel av disponibel inkomst netto | D8: Andel av finansiella tillgångar | E8: Hushållens disponibel inkomst (brutto) B6g + justeringar för förändringar av pensionsrätter D8 | F8: Hushållens disponibel inkomst (netto) B6n + justeringar för förändringar av pensionsrätter D8 | G8: Hushållens disponibel inkomst B6g, brutto | H8: B6n Disponibel inkomst B6n, netto | I8: D8.REC Justering för förändring i hushållens nettofordran på pensionsfonder | J8: Hushållens lån, FL4000 | K8: Finansiella tillgångar, FA0100
A9: 1995 | B9: =J9/E9 -> 0.8637831573 | C9: =J9/F9 -> 0.8853193386 | D9: =J9/K9 -> 0.4190417723 | E9: =G9+I9 -> 957745 | F9: =H9+I9 -> 934447 | G9: 908416 | H9: 885118 | I9: 49329 | J9: 827284 | K9: 1974228
A10: 1996 | B10: 0.8770429577 | C10: 0.8993943765 | D10: 0.3669074709 | E10: =G10+I10 -> 966858 | F10: 942830 | G10: 914814 | H10: 890786 | I10: 52044 | J10: 847976 | K10: 2311144
A11: 1997 | B11: 0.9229156266 | C11: 0.9481914931 | D11: 0.3269561571 | E11: =G11+I11 -> 971455 | F11: 945559 | G11: 921917 | H11: 896021 | I11: 49538 | J11: 896571 | K11: 2742175
A12: 1998 | B12: 0.941896681 | C12: 0.9682907455 | D12: 0.309482547 | E12: =G12+I12 -> 1010734 | F12: 983183 | G12: 948884 | H12: 921333 | I12: 61850 | J12: 952007 | K12: 3076125
A13: 1999 | B13: 0.9736683402 | C13: 1.001628526 | D13: 0.2725626489 | E13: =G13+I13 -> 1061232 | F13: 1031608 | G13: 987901 | H13: 958277 | I13: 73331 | J13: 1033288 | K13: 3791011
A14: 2000 | B14: 0.9864060383 | C14: 1.014993251 | D14: 0.2958730456 | E14: 1141242 | F14: 1109099 | G14: 1044281 | H14: 1012138 | I14: 96961 | J14: 1125728 | K14: 3804767
A15: 2001 | B15: 1.00160222 | C15: 1.030749243 | D15: 0.3155311911 | E15: 1221430 | F15: 1186891 | G15: 1125026 | H15: 1090487 | I15: 96404 | J15: 1223387 | K15: 3877230
A16: 2002 | B16: 1.022604692 | C16: 1.052285336 | D16: 0.3307125227 | E16: 1290617 | F16: 1254214 | G16: 1195503 | H16: 1159100 | I16: 95114 | J16: 1319791 | K16: 3990750
A17: 2003 | B17: 1.083068485 | C17: 1.115409841 | D17: 0.3176763284 | E17: 1328434 | F17: 1289916 | G17: 1227637 | H17: 1189119 | I17: 100797 | J17: 1438785 | K17: 4529091
A18: 2004 | B18: 1.171387741 | C18: 1.208118663 | D18: 0.329932372 | E18: 1358236 | F18: 1316941 | G18: 1253881 | H18: 1212586 | I18: 104355 | J18: 1591021 | K18: 4822264
A19: 2005 | B19: 1.250866549 | C19: 1.290498682 | D19: 0.3021481932 | E19: 1410192 | F19: 1366884 | G19: 1307049 | H19: 1263741 | I19: 103143 | J19: 1763962 | K19: 5838069
A20: 2006 | B20: 1.303066674 | C20: 1.344981758 | D20: 0.2947065489 | E20: 1498040 | F20: 1451355 | G20: 1387794 | H20: 1341109 | I20: 110246 | J20: 1952046 | K20: 6623694
A21: 2007 | B21: 1.314249168 | C21: 1.356237815 | D21: 0.309134628 | E21: 1627667 | F21: 1577275 | G21: 1492429 | H21: 1442037 | I21: 135238 | J21: 2139160 | K21: 6919833
A22: 2008 | B22: 1.349751931 | C22: 1.392641473 | D22: 0.3491063578 | E22: 1715250 | F22: 1662425 | G22: 1586407 | H22: 1533582 | I22: 128843 | J22: 2315162 | K22: 6631681
A23: 2009 | B23: 1.418761418 | C23: 1.464723241 | D23: 0.3336882996 | E23: 1770218 | F23: 1714670 | G23: 1656502 | H23: 1600954 | I23: 113716 | J23: 2511517 | K23: 7526536
A24: 2010 | B24: 1.435302649 | C24: 1.481291955 | D24: 0.3200941635 | E24: 1880873 | F24: 1822478 | G24: 1725181 | H24: 1666786 | I24: 155692 | J24: 2699622 | K24: 8433837
A25: 2011 | B25: 1.447658216 | C25: 1.492703264 | D25: 0.3487296891 | E25: 1960279 | F25: 1901124 | G25: 1808541 | H25: 1749386 | I25: 151738 | J25: 2837814 | K25: 8137575
A26: 2012 | B26: 1.452504446 | C26: 1.496265877 | D26: 0.3442699521 | E26: 2033843 | F26: 1974359 | G26: 1886319 | H26: 1826835 | I26: 147524 | J26: 2954166 | K26: 8580958
A27: 2013 | B27: 1.477760201 | C27: 1.521241843 | D27: 0.3234668373 | E27: 2090509 | F27: 2030756 | G27: 1936378 | H27: 1876625 | I27: 154131 | J27: 3089271 | K27: 9550503
A28: 2014 | B28: 1.492823295 | C28: 1.535999119 | D28: 0.2987703151 | E28: 2187285 | F28: 2125802 | G28: 2002985 | H28: 1941502 | I28: 184300 | J28: 3265230 | K28: 10928897
A29: 2015 | B29: 1.563106944 | C29: 1.609603614 | D29: 0.2936469187 | E29: 2237440 | F29: 2172807 | G29: 2067859 | H29: 2003226 | I29: 169581 | J29: 3497358 | K29: 11910079
A30: 2016 | B30: 1.609693468 | C30: 1.657695627 | D30: 0.2908145505 | E30: 2340112 | F30: 2272349 | G30: 2155023 | H30: 2087260 | I30: 185089 | J30: 3766863 | K30: 12952801
A31: 2017 | B31: 1.659629748 | C31: 1.710957767 | D31: 0.2930667709 | E31: 2420567 | F31: 2347951 | G31: 2249166 | H31: 2176550 | I31: 171401 | J31: 4017245 | K31: 13707610
A32: 2018 | B32: 1.653311147 | C32: 1.704036877 | D32: 0.3064224613 | E32: 2562586 | F32: 2486303 | G32: 2346524 | H32: 2270241 | I32: 216062 | J32: 4236752 | K32: 13826506
A33: 2019 | B33: 1.648854979 | C33: 1.697373748 | D33: 0.2772595361 | E33: =G33+I33 -> 2700474 | F33: =H33+I33 -> 2623282 | G33: 2453524 | H33: 2376332 | I33: 246950 | J33: 4452690 | K33: 16059646
A34: 2020 | B34: 1.76873422 | C34: 1.824923915 | D34: 0.2661987124 | E34: 2657570 | F34: 2575743 | G34: 2461395 | H34: 2379568 | I34: 196175 | J34: 4700535 | K34: 17657993
A35: 2021 | B35: 1.751197097 | C35: =J35/F35 -> 1.806092278 | D35: =J35/K35 -> 0.245747545 | E35: 2867563 | F35: 2780405 | G35: 2623565 | H35: 2536407 | I35: 243998 | J35: 5021668 | K35: 20434255
A36: 2022 | B36: =J36/E36 -> 1.693100917 | C36: =J36/F36 -> 1.745797516 | D36: 0.2829367983 | E36: 3076148 | F36: 2983295 | G36: 2846694 | H36: 2753841 | I36: 229454 | J36: 5208229 | K36: 18407747
A37: 2023 | B37: 1.592980767 | C37: =J37/F37 -> 1.641266257 | D37: =J37/K37 -> 0.2659644278 | E37: 3283179 | F37: 3186589 | G37: 3003699 | H37: 2907109 | I37: 279480 | J37: 5230041 | K37: 19664438
A38: 2024 | B38: =J38/E38 -> 1.519860404 | C38: =J38/F38 -> 1.564609381 | D38: =J38/K38 -> 0.243295163 | E38: 3493232 | F38: 3393323 | G38: 3145157 | H38: 3045248 | I38: 348075 | J38: 5309225 | K38: 21822156
A39: 2025 | B39: =J39/E39 -> 1.534680386 | C39: =J39/F39 -> 1.580430789 | D39: =J39/K39 -> 0.2364751434 | E39: =G39+I39 -> 3554228 | F39: =H39+I39 -> 3451340 | G39: 3273895 | H39: 3171007 | I39: 280333 | J39: 5454604 | K39: 23066289

Sheet Graph 1
B1: Household loans as a percentage of gross/net disposable income plus pension rights, and as a percentage of household financial assets

Sheet Diagram 1
B1: Hushållens låneskulder i procent av justerad disponibel inkomst och av hushållens finansiella tillgångar
